bitfinex-derivatives/quotes_BTCF0:USTF0_20250127
["timestamp","ask_amount","ask_price","bid_price","bid_amount"]
[1738000613094,0.3648,99312.0,99311.0,0.003]
[1738000613298,0.3668,99312.0,99307.0,0.201465]
[1738000613503,0.3668,99312.0,99305.0,0.02672305]
[1738000613702,0.3668,99312.0,99311.0,0.201458]
[1738000613905,0.3668,99312.0,99309.0,0.00052]
[1738000614198,0.3668,99312.0,99308.0,0.204463]
[1738000614497,0.3648,99312.0,99311.0,1.5]
[1738000614805,0.3648,99312.0,99308.0,0.003]
[1738000614806,0.3658,99312.0,99308.0,0.003]
[1738000614989,0.562262,99309.0,99308.0,0.003]
[1738000616503,0.201478,99301.0,99300.0,0.1]
[1738000616696,0.562278,99301.0,99300.0,0.1]
[1738000617000,0.562278,99301.0,99300.0,0.04976339]
[1738000617402,0.201506,99287.0,99269.0,0.201541]
[1738000617593,0.562306,99287.0,99276.0,0.0269293]
[1738000617996,0.3608,99287.0,99276.0,0.0269293]
[1738000618293,0.00015106,99296.0,99283.0,0.3608]
[1738000618488,0.00015106,99296.0,99295.0,0.20149]
[1738000619201,0.00076,99301.0,99300.0,0.20148]
[1738000619507,0.00076,99301.0,99295.0,0.3608]
[1738000619508,0.11861463,99310.0,99308.0,0.201464]
[1738000619799,0.14890573,99318.0,99316.0,0.201446]
[1738000619800,0.13525982,99318.0,99316.0,0.201446]
[1738000620004,0.11920888,99317.0,99316.0,0.15120939]
[1738000620501,0.3608,99322.0,99310.0,0.22532011]
[1738000620707,0.00064,99341.0,99318.0,0.3608]
[1738000621003,0.02709309,99346.0,99344.0,0.20139]
[1738000621301,0.02649308,99346.0,99345.0,0.3608]
[1738000621497,0.00151023,99369.0,99356.0,0.201366]
[1738000621903,0.00151023,99369.0,99350.0,0.22532011]
[1738000621904,0.3608,99387.0,99365.0,0.201346]
[1738000622201,0.36095097,99371.0,99357.0,1.50052]
[1738000622399,0.201343,99368.0,99357.0,1.5]
[1738000622596,0.201364,99358.0,99356.0,0.02702684]
[1738000622807,0.3608,99362.0,99353.0,0.14384]
[1738000623000,0.3608,99354.0,99330.0,0.31127436]
[1738000623314,0.3608,99332.0,99325.0,0.1824]
[1738000623604,0.3608,99341.0,99326.0,1.5]
[1738000624004,0.3608,99341.0,99325.0,0.20998153]
[1738000624395,0.3608,99341.0,99330.0,0.004]
[1738000624602,0.00015097,99343.0,99335.0,0.201409]
[1738000624894,0.00015097,99343.0,99334.0,0.3608]
[1738000625100,0.00015097,99343.0,99331.0,0.22532011]
[1738000625406,0.00015097,99343.0,99326.0,0.3608]
[1738000625601,0.3608,99337.0,99326.0,0.3608]
[1738000625998,0.3608,99337.0,99325.0,0.21298153]
[1738000626199,0.3608,99337.0,99325.0,0.16274492]
[1738000626597,0.201426,99327.0,99325.0,0.003]
[1738000626909,0.201429,99325.0,99324.0,0.00166095]
[1738000627103,0.562229,99325.0,99324.0,0.00166095]
[1738000628405,0.562229,99325.0,99324.0,0.00266095]
[1738000629207,0.3608,99325.0,99310.0,0.25270403]
[1738000629507,0.3608,99316.0,99315.0,0.20145]
[1738000629708,0.36836001,99325.0,99324.0,0.201431]
[1738000629899,0.3608,99325.0,99324.0,0.201431]
[1738000630299,0.3608,99325.0,99311.0,0.1852]
[1738000630501,0.3608,99315.0,99310.0,0.02738392]
[1738000631710,0.3608,99315.0,99314.0,0.49848]
[1738000632111,0.3638,99315.0,99314.0,0.44824339]
[1738000632310,0.3638,99315.0,99301.0,0.00056]
[1738000632311,0.201452,99314.0,99301.0,0.00056]
[1738000632507,0.20148,99300.0,99299.0,0.03315816]
[1738000632710,0.20148,99300.0,99294.0,0.00151052]
[1738000633099,0.3608,99302.0,99294.0,0.00151052]
[1738000633901,0.201487,99297.0,99294.0,0.0346179]
[1738000634112,0.3608,99295.0,99294.0,0.00151052]
[1738000634313,0.56229,99295.0,99294.0,0.00151052]
[1738000634809,0.56229,99295.0,99294.0,0.00251052]
[1738000635010,0.56229,99295.0,99294.0,0.001]
[1738000635204,0.201527,99278.0,99276.0,0.45324339]
[1738000635407,0.3608,99277.0,99276.0,0.48763051]
[1738000636310,0.3608,99277.0,99276.0,0.45324339]
[1738000636507,0.562327,99277.0,99276.0,0.45324339]
[1738000637509,0.201547,99268.0,99266.0,0.00052]
[1738000637712,0.562349,99267.0,99266.0,0.02855492]
[1738000637914,0.562349,99267.0,99264.0,0.00151121]
[1738000638114,0.20155,99266.0,99264.0,0.00151121]
[1738000638316,0.20155,99266.0,99256.0,0.201569]
[1738000638914,0.20155,99266.0,99255.0,0.0287733]
[1738000639111,0.20155,99266.0,99253.0,0.201575]
[1738000639511,0.20255,99266.0,99253.0,0.201575]
[1738000639818,0.001,99266.0,99251.0,0.20961306]
[1738000640119,0.00056001,99267.0,99266.0,0.201549]
[1738000640314,0.3608,99277.0,99262.0,0.3608]
[1738000640623,0.3608,99277.0,99267.0,0.14612462]
[1738000640809,0.201567,99257.0,99256.0,0.001]
[1738000641314,0.201581,99251.0,99249.0,0.3608]
[1738000641822,0.201581,99251.0,99249.0,0.02896838]
[1738000642014,0.3608,99258.0,99235.0,0.49807124]
[1738000642325,0.562384,99249.0,99235.0,0.49807124]
[1738000642718,0.562384,99249.0,99239.0,0.14612462]
[1738000642915,0.562384,99249.0,99235.0,0.49807124]
[1738000643925,0.3608,99249.0,99246.0,0.02933563]
[1738000644127,0.201572,99255.0,99246.0,0.02933563]
[1738000644428,0.201572,99255.0,99241.0,0.34289902]
[1738000644626,0.002,99249.0,99241.0,0.34289902]
[1738000645014,0.002,99249.0,99241.0,0.37259287]
[1738000645319,0.004,99249.0,99241.0,0.02969385]
[1738000645525,0.004,99249.0,99236.0,1.50052]
[1738000645727,0.004,99249.0,99236.0,1.5]
[1738000645910,0.20159,99246.0,99236.0,1.5]
[1738000646230,0.3608,99237.0,99236.0,0.02898033]
[1738000646525,0.201639,99222.0,99221.0,0.00151149]
[1738000646722,0.3608,99226.0,99221.0,1.50151149]
[1738000646930,0.3608,99226.0,99221.0,1.53126941]
[1738000647139,0.201638,99223.0,99221.0,1.53126941]
[1738000647423,0.3608,99226.0,99210.0,0.1302376]
[1738000647723,0.00015113,99233.0,99217.0,0.3608]
[1738000648021,0.00015113,99233.0,99232.0,0.3608]
[1738000648221,0.001,99249.0,99236.0,0.20161]
[1738000648424,0.001,99249.0,99239.0,0.14612462]
[1738000648721,0.001,99249.0,99240.0,0.3608]
[1738000649025,0.1787,99267.0,99240.0,0.3608]
[1738000649026,8.018e-05,99248.0,99240.0,0.3608]
[1738000649737,8.018e-05,99248.0,99247.0,1.5]
[1738000650426,8.018e-05,99248.0,99247.0,1.44976339]
[1738000652230,0.001,99249.0,99247.0,1.44976339]
[1738000652728,0.00015113,99254.0,99247.0,1.45076339]
[1738000653029,0.201586,99248.0,99247.0,0.001]
[1738000653530,0.3608,99248.0,99223.0,0.31222622]
[1738000653731,0.3608,99236.0,99223.0,0.31222622]
[1738000654119,0.201604,99240.0,99223.0,0.51386122]
[1738000654318,0.201604,99240.0,99223.0,0.31222622]
[1738000654731,0.201604,99240.0,99223.0,0.34151479]
[1738000655027,0.36336001,99248.0,99223.0,0.34151479]
[1738000655028,0.201592,99246.0,99230.0,0.14612462]
[1738000655227,0.36136001,99248.0,99230.0,0.14612462]
[1738000655420,0.201588,99247.0,99238.0,0.14612462]
[1738000655918,0.36592002,99248.0,99239.0,0.1825]
[1738000656124,0.562388,99248.0,99240.0,0.1847]
[1738000656322,0.00015113,99254.0,99240.0,0.5455]
[1738000656522,0.00015113,99254.0,99246.0,0.15135239]
[1738000656828,0.001,99247.0,99246.0,0.15135239]
[1738000657026,0.00108018,99247.0,99240.0,0.57484423]
[1738000657249,0.00108018,99247.0,99244.0,0.201593]
[1738000657620,0.00108018,99247.0,99240.0,0.57484423]
[1738000657828,0.001,99247.0,99240.0,0.57484423]
[1738000658035,0.00215113,99254.0,99240.0,0.57484423]
[1738000658621,0.201578,99252.0,99240.0,0.57484423]
[1738000659128,0.00215113,99254.0,99240.0,0.77644623]
[1738000659329,0.00215113,99254.0,99241.0,0.2016]
[1738000659635,0.00015113,99254.0,99241.0,0.15136339]
[1738000659831,0.00015113,99254.0,99241.0,1.65136339]
[1738000660133,0.00015113,99254.0,99241.0,1.5]
[1738000660323,0.00115113,99254.0,99241.0,1.5]
[1738000660726,0.00015113,99254.0,99241.0,1.5]
[1738000661123,0.20172613,99254.0,99241.0,1.5]
[1738000661332,0.3608,99249.0,99220.0,0.51272462]
[1738000661523,0.201603,99240.0,99230.0,0.14612462]
[1738000661930,0.3608,99246.0,99230.0,0.14612462]
[1738000662327,0.2016,99241.0,99230.0,0.14612462]
[1738000662530,0.3608,99246.0,99230.0,0.09588801]
[1738000662932,0.201601,99241.0,99223.0,0.201637]
[1738000663131,0.07973215,99253.0,99222.0,0.39008015]
[1738000663132,0.02933815,99253.0,99230.0,0.14612462]
[1738000663428,0.201597,99243.0,99230.0,0.14612462]
[1738000664822,0.3608,99251.0,99230.0,0.14612462]
[1738000665023,0.3608,99251.0,99240.0,0.14612462]
[1738000665633,0.3608,99251.0,99240.0,0.09588801]
[1738000666132,0.3608,99251.0,99232.0,0.562417]
[1738000666133,0.201592,99246.0,99232.0,0.562417]
[1738000666328,0.3608,99251.0,99232.0,0.38964884]
[1738000666529,0.3608,99251.0,99240.0,0.14612462]
[1738000667230,0.3608,99251.0,99241.0,1.5]
[1738000668239,0.3618,99251.0,99241.0,1.5]
[1738000668425,0.3618,99251.0,99244.0,0.201594]
[1738000668625,0.3618,99251.0,99241.0,1.5]
[1738000668626,8.018e-05,99250.0,99242.0,0.3608]
[1738000668822,8.018e-05,99250.0,99241.0,1.50052]
[1738000669233,0.36236001,99251.0,99241.0,1.5]
[1738000669435,0.3618,99251.0,99241.0,1.7016]
[1738000669740,0.3608,99251.0,99241.0,1.5]
[1738000669939,0.3618,99251.0,99241.0,1.5]
[1738000670334,0.3618,99251.0,99240.0,0.14612462]
[1738000670531,0.3618,99251.0,99241.0,0.2016]
[1738000671126,0.3618,99251.0,99240.0,0.14612462]
[1738000671324,0.3608,99251.0,99233.0,1.50052]
[1738000671529,8.018e-05,99250.0,99241.0,0.01575723]
[1738000671836,8.018e-05,99250.0,99240.0,0.14612462]
[1738000671837,0.3608,99251.0,99240.0,0.31324624]
[1738000672445,0.3608,99251.0,99240.0,0.61856986]
[1738000672630,8.018e-05,99250.0,99240.0,0.50692462]
[1738000672826,0.3608,99241.0,99233.0,0.00056]
[1738000673028,0.3608,99241.0,99232.0,0.02884884]
[1738000673342,0.3608,99241.0,99230.0,0.14612462]
[1738000673531,0.3608,99241.0,99231.0,0.17384089]
[1738000674135,0.3618,99241.0,99231.0,0.17384089]
[1738000674741,7.742e-05,99240.0,99231.0,0.17384089]
[1738000675044,7.742e-05,99240.0,99237.0,0.201608]
[1738000675242,7.742e-05,99240.0,99239.0,0.201604]
[1738000676645,7.742e-05,99240.0,99239.0,1.701604]
[1738000677049,0.00107742,99240.0,99239.0,1.701604]
[1738000677550,0.00207742,99240.0,99239.0,1.701604]
[1738000677749,0.00207742,99240.0,99239.0,1.65136739]
[1738000678251,7.742e-05,99240.0,99239.0,1.65136739]
[1738000680749,0.09007933,99241.0,99240.0,0.15136539]
[1738000682746,0.09107933,99241.0,99240.0,0.15136539]
[1738000683344,0.09007933,99241.0,99239.0,1.50056]
[1738000683543,0.09007933,99241.0,99231.0,0.12736979]
[1738000683753,0.09007933,99241.0,99235.0,0.31056339]
[1738000683952,0.09007933,99241.0,99239.0,0.201603]
[1738000684852,0.09007933,99241.0,99240.0,0.201602]
[1738000685646,0.0443928,99258.0,99242.0,0.050399]
[1738000685839,0.20922506,99270.0,99268.0,0.201545]
[1738000686047,0.20862505,99270.0,99269.0,1.8608]
[1738000686247,0.19061303,99270.0,99269.0,2.0511]
[1738000686957,0.00151195,99276.0,99275.0,0.15129439]
[1738000687155,0.00151195,99276.0,99275.0,0.51209439]
[1738000687960,0.00015113,99279.0,99275.0,0.50404]
[1738000688254,0.00015113,99279.0,99278.0,0.201525]
[1738000689354,0.00299,99292.0,99290.0,0.2015]
[1738000689656,0.00299,99292.0,99291.0,0.3608]
[1738000689856,0.00299,99292.0,99291.0,0.31056339]
[1738000690256,0.00299,99292.0,99291.0,1.81056339]
[1738000690860,0.00799,99292.0,99291.0,1.81056339]
[1738000691457,0.00799,99292.0,99291.0,2.17136339]
[1738000691767,0.1843,99316.0,99306.0,0.201468]
[1738000691952,0.1843,99316.0,99306.0,0.562268]
[1738000692560,0.1843,99316.0,99306.0,0.3608]
[1738000692761,0.201452,99314.0,99306.0,0.3608]
[1738000692953,0.3608,99315.0,99297.0,0.14620829]
[1738000692954,0.00899,99307.0,99297.0,0.14620829]
[1738000693657,0.01799,99307.0,99297.0,0.14620829]
[1738000694060,0.01699,99307.0,99297.0,0.14620829]
[1738000695055,0.201468,99306.0,99297.0,0.14620829]
[1738000696060,0.201468,99306.0,99291.0,0.34728681]
[1738000696061,0.3608,99303.0,99296.0,0.14620829]
[1738000696259,0.3608,99300.0,99268.0,1.50064]
[1738000696455,0.562314,99283.0,99261.0,0.3608]
[1738000696655,0.3608,99283.0,99281.0,0.201518]
[1738000696858,0.36140001,99300.0,99284.0,0.201512]
[1738000697066,0.36140001,99300.0,99281.0,0.3608]
[1738000697067,0.00015105,99292.0,99290.0,0.14620829]
[1738000697359,0.00015105,99292.0,99285.0,0.20151]
[1738000697566,0.201502,99290.0,99282.0,0.34105942]
[1738000697767,0.3608,99288.0,99273.0,0.03657775]
[1738000697952,0.3608,99277.0,99271.0,0.201539]
[1738000698265,0.1873,99287.0,99270.0,0.14620829]
[1738000698570,0.36132001,99288.0,99276.0,0.3608]
[1738000698571,0.00052001,99288.0,99276.0,0.3608]
[1738000698758,0.1873,99306.0,99278.0,0.14620829]
[1738000698961,0.1873,99306.0,99289.0,0.15126439]
[1738000699162,0.012,99300.0,99289.0,0.15126439]
[1738000699466,0.012,99300.0,99278.0,0.14620829]
[1738000699764,0.00415105,99292.0,99290.0,0.2015]
[1738000699949,0.00415105,99292.0,99291.0,0.201498]
[1738000700451,0.009,99291.0,99290.0,1.50072]
[1738000700652,0.009,99291.0,99285.0,0.3608]
[1738000701058,0.00915105,99292.0,99285.0,0.3608]
[1738000701449,0.00915105,99292.0,99285.0,0.40517103]
[1738000702062,0.00915105,99292.0,99285.0,0.35493442]
[1738000702460,0.01415105,99292.0,99285.0,0.35493442]
[1738000702660,0.00515105,99292.0,99288.0,0.201504]
[1738000702863,0.009,99291.0,99290.0,0.201499]
[1738000703263,0.00415105,99292.0,99290.0,0.201499]
[1738000703458,0.01315105,99292.0,99290.0,0.201499]
[1738000703663,0.01315105,99292.0,99291.0,0.201498]
[1738000703864,0.00415105,99292.0,99291.0,0.201498]
[1738000705158,0.00415105,99292.0,99291.0,0.15126139]
[1738000705569,0.00015105,99292.0,99291.0,0.15126139]
[1738000706058,0.00915105,99292.0,99291.0,0.15126139]
[1738000706461,0.00015105,99292.0,99291.0,0.15126139]
[1738000706658,0.01415105,99292.0,99291.0,0.15126139]
[1738000706957,0.01415105,99292.0,99291.0,1.5]
[1738000707256,0.01415105,99292.0,99291.0,1.701499]
[1738000707458,0.01415105,99292.0,99285.0,0.35493442]
[1738000707459,0.73575105,99292.0,99285.0,0.04437103]
[1738000707667,0.73575105,99292.0,99272.0,0.00015105]
[1738000707668,0.201535,99273.0,99272.0,0.00015105]
[1738000708176,0.201545,99268.0,99267.0,0.13001044]
[1738000709783,0.206545,99268.0,99267.0,0.13001044]
[1738000709966,0.005,99268.0,99267.0,0.13001044]
[1738000710168,0.201519,99281.0,99267.0,0.33155744]
[1738000710466,0.3608,99287.0,99267.0,0.13001044]
[1738000710467,0.36132001,99287.0,99267.0,0.13001044]
[1738000710666,0.201534,99274.0,99267.0,0.13001044]
[1738000710863,0.1946,99286.0,99267.0,0.13001044]
[1738000711070,0.1946,99286.0,99267.0,0.07977383]
[1738000711273,0.201524,99279.0,99267.0,0.07977383]
[1738000711577,0.1946,99286.0,99267.0,0.07977383]
[1738000711578,0.201515,99283.0,99270.0,0.201541]
[1738000711765,0.201515,99283.0,99273.0,0.3608]
[1738000711964,0.36132001,99287.0,99273.0,0.3608]
[1738000711965,0.201517,99282.0,99273.0,0.3608]
[1738000712164,0.001,99281.0,99273.0,0.3608]
[1738000712672,0.001,99281.0,99274.0,0.1893]
[1738000712877,0.201517,99282.0,99274.0,0.1893]
[1738000713071,0.003,99281.0,99274.0,0.1893]
[1738000713573,0.3608,99295.0,99274.0,0.1893]
[1738000713574,0.04832628,99322.0,99283.0,0.050378]
[1738000713780,0.00052001,99314.0,99306.0,0.3608]
[1738000713973,0.00299,99322.0,99307.0,0.201466]
[1738000713974,0.16153746,99308.0,99307.0,0.201466]
[1738000714168,0.16153746,99308.0,99307.0,1.65122939]
[1738000714364,0.16153746,99308.0,99307.0,1.84052939]
[1738000714675,0.16153746,99308.0,99307.0,1.6893]
[1738000715371,0.16153746,99308.0,99307.0,1.73517762]
[1738000715572,0.16153746,99308.0,99307.0,2.09597762]
[1738000715772,0.16153746,99308.0,99307.0,2.29744362]
[1738000716073,0.16353746,99308.0,99307.0,2.29744362]
[1738000716268,0.003,99308.0,99307.0,2.29744362]
[1738000717283,0.003,99308.0,99307.0,2.24720701]
[1738000718175,0.00015105,99317.0,99316.0,0.201448]
[1738000718376,0.00015105,99317.0,99316.0,0.562248]
[1738000719380,0.00215105,99317.0,99316.0,2.062248]
[1738000719684,0.00215105,99317.0,99316.0,2.063248]
[1738000719685,0.00715105,99317.0,99316.0,2.063248]
[1738000720185,0.00715105,99317.0,99316.0,2.01301139]
[1738000723285,0.00715105,99317.0,99316.0,1.96277478]
[1738000723777,0.00715105,99317.0,99316.0,1.8618]
[1738000724573,0.00715105,99317.0,99316.0,0.3618]
[1738000725574,0.00715105,99317.0,99316.0,0.001]
[1738000726281,0.00715105,99317.0,99307.0,0.74218591]
[1738000726476,0.201448,99316.0,99307.0,0.74218591]
[1738000727281,0.201448,99316.0,99308.0,1.5]
[1738000727479,0.201461,99310.0,99307.0,0.74218591]
[1738000727780,0.00115105,99317.0,99307.0,0.74218591]
[1738000728085,0.00115105,99317.0,99316.0,0.3608]
[1738000728285,0.00015105,99317.0,99316.0,0.3608]
[1738000729280,0.00215105,99317.0,99316.0,0.31056339]
[1738000729875,0.00299,99322.0,99319.0,0.201441]
[1738000730075,0.00299,99322.0,99321.0,0.201438]
[1738000730673,0.00299,99322.0,99316.0,0.31156339]
[1738000730877,0.00299,99322.0,99316.0,0.51301039]
[1738000731082,0.00499,99322.0,99316.0,0.51301039]
[1738000731278,0.00499,99322.0,99316.0,0.31156339]
[1738000731480,0.201441,99320.0,99308.0,0.0008]
[1738000731676,0.1969,99319.0,99307.0,0.55376591]
[1738000731874,0.1969,99319.0,99307.0,0.55288591]
[1738000732082,0.1969,99319.0,99308.0,1.5]
[1738000732303,0.3666,99351.0,99318.0,0.3608]
[1738000732479,0.36132001,99343.0,99328.0,0.3608]
[1738000732792,0.00052001,99343.0,99336.0,0.562208]
[1738000732987,0.1493097,99348.0,99336.0,0.562208]
[1738000733183,0.1493097,99348.0,99336.0,0.3608]
[1738000733378,0.1493097,99348.0,99336.0,1.5]
[1738000733578,0.00015105,99346.0,99336.0,1.5]
[1738000734692,0.201389,99345.0,99336.0,1.5]
[1738000735194,0.201389,99345.0,99336.0,1.54616758]
[1738000735385,0.201392,99344.0,99336.0,1.49693097]
[1738000735786,0.201405,99338.0,99336.0,0.04716758]
[1738000735976,0.36147106,99346.0,99336.0,0.04716758]
[1738000736180,0.204396,99337.0,99336.0,0.04716758]
[1738000736381,0.565196,99337.0,99336.0,0.04716758]
[1738000736680,0.00299,99337.0,99336.0,0.04716758]
[1738000737279,0.00699,99337.0,99336.0,0.04616758]
[1738000737484,0.00699,99337.0,99328.0,1.5]
[1738000737691,0.00699,99337.0,99324.0,0.3608]
[1738000737893,0.00599,99337.0,99324.0,0.56223]
[1738000738083,0.00499,99337.0,99325.0,1.5]
[1738000738280,0.00499,99337.0,99327.0,0.04664148]
[1738000738481,0.00299,99337.0,99328.0,0.201423]
[1738000738683,0.00499,99337.0,99328.0,0.201423]
[1738000739291,0.00499,99337.0,99329.0,0.20142]
[1738000739588,0.00499,99337.0,99330.0,1.5]
[1738000739890,0.00499,99337.0,99332.0,0.3608]
[1738000740284,0.00299,99337.0,99332.0,0.3608]
[1738000740484,0.00299,99337.0,99334.0,0.201411]
[1738000740880,0.00299,99337.0,99332.0,0.3608]
[1738000741583,0.00299,99337.0,99334.0,0.001]
[1738000741791,0.00299,99337.0,99334.0,0.002]
[1738000741994,0.36379,99337.0,99334.0,0.002]
[1738000742290,0.201409,99335.0,99334.0,0.001]
[1738000743190,0.3,99335.0,99292.0,0.3608]
[1738000743382,0.3608,99324.0,99309.0,0.04623088]
[1738000743582,0.201436,99322.0,99310.0,0.1460171]
[1738000743784,0.201444,99318.0,99310.0,0.1460171]
[1738000743982,0.201448,99316.0,99310.0,0.1460171]
[1738000744491,0.18645105,99323.0,99310.0,0.09578049]
[1738000744689,0.201456,99312.0,99303.0,0.00015105]
[1738000744991,0.3608,99309.0,99303.0,0.00015105]
[1738000745192,0.201472,99304.0,99303.0,0.00015105]
[1738000745895,0.20202201,99309.0,99303.0,0.00015105]
[1738000746092,0.36140001,99315.0,99303.0,0.00015105]
[1738000746299,0.201472,99304.0,99303.0,0.00015105]
[1738000746592,0.201472,99304.0,99303.0,0.00115105]
[1738000747182,0.201486,99297.0,99279.0,0.24152942]
[1738000747500,0.201486,99297.0,99263.0,0.201554]
[1738000747501,0.201518,99281.0,99280.0,0.25167517]
[1738000747684,0.36132001,99284.0,99280.0,0.25167517]
[1738000747883,0.3608,99284.0,99282.0,0.201516]
[1738000748297,0.3608,99284.0,99280.0,0.25167517]
[1738000748497,0.3608,99284.0,99279.0,0.001]
[1738000748889,0.201519,99281.0,99279.0,0.001]
[1738000749792,0.201519,99281.0,99277.0,0.54167131]
[1738000750389,0.36132001,99284.0,99277.0,0.54167131]
[1738000750593,0.201523,99279.0,99277.0,0.4914347]
[1738000750798,0.201523,99279.0,99277.0,0.44620339]
[1738000750995,0.36136001,99284.0,99273.0,0.00015105]
[1738000751195,0.562333,99274.0,99273.0,0.00015105]
[1738000751692,0.201559,99261.0,99260.0,0.00151097]
[1738000752000,0.562359,99261.0,99260.0,0.00151097]
[1738000752586,0.56285501,99274.0,99260.0,0.20307197]
[1738000752791,0.3608,99274.0,99264.0,0.1460171]
[1738000753188,0.562335,99274.0,99265.0,0.3719]
[1738000753597,0.3608,99274.0,99266.0,0.31056339]
[1738000754602,0.3608,99274.0,99260.0,0.00251097]
[1738000754810,0.3608,99261.0,99260.0,0.00151097]
[1738000754995,0.3608,99261.0,99240.0,0.1460171]
[1738000755195,0.562383,99249.0,99240.0,0.1460171]
[1738000755399,0.20157,99256.0,99243.0,0.201595]
[1738000755597,0.201583,99250.0,99240.0,0.1460171]
[1738000755796,0.201583,99250.0,99234.0,0.18241164]
[1738000756307,0.20161,99236.0,99234.0,0.00151164]
[1738000756599,0.3608,99235.0,99227.0,0.19521341]
[1738000756807,0.201626,99228.0,99227.0,0.19521341]
[1738000757900,0.201616,99233.0,99227.0,0.19521341]
[1738000758109,0.00052001,99235.0,99227.0,0.39684141]
[1738000758294,0.001,99228.0,99227.0,0.39684141]
[1738000758997,0.001,99233.0,99228.0,0.201626]
[1738000759199,0.001,99233.0,99229.0,1.8608]
[1738000759407,0.001,99233.0,99229.0,2.0511]
[1738000759606,0.001,99233.0,99230.0,0.1884]
[1738000759800,0.001,99233.0,99230.0,0.13816339]
[1738000760707,0.201611,99236.0,99230.0,0.13816339]
[1738000761209,0.001,99233.0,99230.0,0.13816339]
[1738000762008,0.201614,99234.0,99230.0,0.13816339]
[1738000762209,0.3608,99244.0,99230.0,0.13816339]
[1738000762210,0.201604,99239.0,99230.0,0.13816339]
[1738000762507,0.36136001,99244.0,99230.0,0.13816339]
[1738000762818,0.20161,99237.0,99230.0,0.08792678]
[1738000763108,0.20161,99236.0,99230.0,0.08792678]
[1738000763817,0.3608,99244.0,99229.0,1.6911]
[1738000764002,0.201597,99243.0,99229.0,1.5]
[1738000764197,0.201611,99236.0,99229.0,1.5]
[1738000764401,0.201612,99235.0,99229.0,1.5]
[1738000764606,0.001,99234.0,99229.0,1.5]
[1738000765617,0.3608,99244.0,99229.0,1.5]
[1738000765907,0.201607,99238.0,99229.0,1.44976339]
[1738000766315,0.001,99243.0,99229.0,1.45176339]
[1738000766497,0.2016,99242.0,99229.0,1.45176339]
[1738000766706,0.201602,99240.0,99229.0,1.45176339]
[1738000767004,0.201602,99240.0,99229.0,1.44976339]
[1738000767312,0.201604,99239.0,99229.0,1.45376339]
[1738000767513,0.562422,99230.0,99229.0,0.004]
[1738000768008,0.201644,99219.0,99208.0,1.5]
[1738000768307,0.201644,99219.0,99218.0,0.03277242]
[1738000768512,0.201644,99219.0,99218.0,0.003]
[1738000768905,0.3608,99230.0,99213.0,0.14836339]
[1738000769104,0.3608,99230.0,99220.0,0.1460171]
[1738000769706,0.201631,99226.0,99220.0,0.1460171]
[1738000769916,0.201624,99229.0,99218.0,0.001]
[1738000770209,0.201633,99225.0,99220.0,0.001]
[1738000770614,0.201633,99225.0,99220.0,0.004]
[1738000771100,0.562424,99230.0,99220.0,0.001]
[1738000771300,0.562424,99230.0,99220.0,0.1470171]
[1738000771704,0.562424,99230.0,99220.0,0.1460171]
[1738000771910,0.562424,99230.0,99220.0,0.09878049]
[1738000772311,0.201603,99240.0,99228.0,0.3608]
[1738000772615,0.00052001,99241.0,99231.0,0.1460171]
[1738000772806,0.00151209,99250.0,99236.0,0.20161]
[1738000773014,0.00151209,99250.0,99237.0,0.1826]
[1738000773215,0.201595,99244.0,99237.0,0.1826]
[1738000773403,0.00151209,99250.0,99238.0,1.5]
[1738000773715,0.20159,99246.0,99238.0,1.5]
[1738000773900,0.3608,99244.0,99238.0,1.5]
[1738000774106,0.00151209,99250.0,99238.0,1.5]
[1738000774412,0.11966848,99263.0,99238.0,1.5]
[1738000774717,0.3608,99258.0,99238.0,1.5]
[1738000774918,0.00115113,99245.0,99238.0,1.44976339]
[1738000775112,0.00115113,99245.0,99238.0,1.65136839]
[1738000775307,0.00115113,99245.0,99239.0,0.201603]
[1738000775508,0.00415113,99245.0,99239.0,0.201603]
[1738000775812,0.00315113,99245.0,99240.0,0.201602]
[1738000776005,0.00315113,99245.0,99244.0,0.201594]
[1738000776206,0.00315113,99245.0,99244.0,0.3608]
[1738000776416,0.00315113,99245.0,99238.0,1.4808921]
[1738000776716,0.00315113,99245.0,99239.0,0.001]
[1738000777021,0.00015113,99245.0,99239.0,0.001]
[1738000777329,0.201596,99243.0,99239.0,0.001]
[1738000777521,0.00015113,99245.0,99239.0,0.001]
[1738000778016,0.00015113,99245.0,99238.0,0.002]
[1738000778218,0.00015113,99245.0,99244.0,0.001]
[1738000779016,0.00015113,99245.0,99239.0,0.002]
[1738000779218,0.00015113,99245.0,99242.0,0.201597]
[1738000779418,0.00015113,99245.0,99239.0,0.002]
[1738000779921,0.00015113,99245.0,99244.0,0.201594]
[1738000780308,0.00015113,99245.0,99239.0,0.201603]
[1738000780514,0.00015113,99245.0,99237.0,1.52971718]
[1738000780719,0.00015113,99245.0,99237.0,1.52883718]
[1738000780916,0.00015113,99245.0,99237.0,1.47960057]
[1738000781608,0.00015113,99245.0,99239.0,0.002]
[1738000781815,0.00115113,99245.0,99239.0,0.002]
[1738000782510,0.00015113,99245.0,99239.0,0.002]
[1738000782709,0.562402,99240.0,99237.0,0.001]
[1738000782907,0.562402,99240.0,99215.0,0.30107492]
[1738000782908,0.050403,99235.0,99215.0,0.30163492]
[1738000783112,0.201644,99219.0,99215.0,0.30163492]
[1738000783316,0.201644,99219.0,99216.0,0.02979569]
[1738000783710,0.201644,99219.0,99215.0,0.30107492]
[1738000784117,0.20165,99216.0,99215.0,0.28216604]
[1738000785221,0.20165,99216.0,99215.0,0.02981607]
[1738000785524,0.201671,99206.0,99201.0,0.1854]
[1738000785716,0.201671,99206.0,99204.0,0.01576314]
[1738000786220,0.201671,99206.0,99170.0,0.5068171]
[1738000786221,0.3608,99205.0,99170.0,0.5068171]
[1738000786425,0.201723,99181.0,99179.0,0.49688]
[1738000786722,0.3608,99189.0,99179.0,0.49688]
[1738000787020,0.3608,99189.0,99179.0,0.47597216]
[1738000787332,0.3608,99189.0,99180.0,0.04083236]